[Event "Satka Autumn 2017"]
[Site "Satka"]
[Date "2017.09.17"]
[Round "6"]
[White "Nasyrova, Ekaterina"]
[Black "Pogorelskikh, Sofia"]
[Result "1/2-1/2"]
[ECO "D76"]
[WhiteElo "2017"]
[BlackElo "2023"]
[Annotator "NA"]
[PlyCount "206"]
[EventDate "2017.??.??"]
[EventType "swiss"]
[EventCountry "RUS"]
[SourceTitle "playchess.com"]
[Source "ChessBase"]
[SourceQuality "1"]
[TimeControl "5400+30"]

1. d4 {[%emt 0:00:00]} Nf6 {[%emt 0:00:09]} 2. c4 {[%emt 0:00:00]} g6 {[%emt 0:00:12]} 3. g3 {[%emt 0:00:00]} Bg7 {[%emt 0:06:53]} 4. Bg2 {[%emt 0:00:18]} d5 {[%emt 0:02:10]} 5. cxd5 {[%emt 0:00:19]} Nxd5 {[%emt 0:00:13]} 6. Nf3 {[%emt 0:00:19]} O-O {[%emt 0:01:30]} 7. O-O {[%emt 0:00:45]} Nb6 {[%emt 0:06:57]} 8. Nc3 {[%emt 0:00:29]} Nc6 {[%emt 0:05:13]} 9. e3 {[%emt 0:01:18]} e5 {[%emt 0:01:06]} 10. d5 {[%emt 0:00:45] LiveBook: 466 Games} Nb8 {[%emt 0:05:50] D76: Grünfeldindisch (Fianchetto HV 7... Sb6)} (10... Ne7 $11 11. e4 Bg4 12. h3 Bxf3 13. Qxf3 c6 14. Rd1 cxd5 15. exd5 Nf5 16. d6 Rb8 17. Qd3 Nd7 18. Ne4 Qb6 19. Bg5 Rfc8 20. Rac1 Nd4 21. Be7 f5 22. Ng5 e4 23. Bxe4 fxe4 24. Qxe4 Rc5 25. Rxc5 Qxc5 26. Rxd4 Bxd4 {0-1 (38) Mchedlishvili,M (2601)-Savchenko,B (2618) Subic Bay 2016}) 11. e4 {[%emt 0:14:55]} c6 {[%emt 0:02:20]} 12. Be3 $146 {[%emt 0:06:06]} ({Vorgänger:} 12. Qb3 cxd5 13. exd5 Na6 14. Be3 Qd6 15. Rfd1 Rd8 16. a3 Bd7 17. Ng5 Nc5 18. Qb4 {1-0 (28) Kozma,J-Kopriva,J Sternberk 1962}) 12... cxd5 {[%emt 0:03:45]} 13. exd5 {[%emt 0:06:28]} Nc4 {[%emt 0:11:05]} 14. Bc5 {[%emt 0:05:45]} Re8 {[%emt 0:08:07]} 15. Qe2 {[%emt 0:00:43]} b6 {[%emt 0:04:06]} 16. Qxc4 {[%emt 0:08:43]} Ba6 {[%emt 0:00:34]} 17. Nb5 {[%emt 0:10:25]} bxc5 {[%emt 0:00:28]} 18. a4 {[%emt 0:07:33]} Nd7 {[%emt 0:04:10]} 19. Rfe1 {[%emt 0:01:59]} Qa5 {[%emt 0:06:26]} (19... e4 $11 {remains equal.} 20. Rxe4 Nb6 21. Rxe8+ Qxe8) 20. Ng5 {[%emt 0:08:45]} Nb6 {[%emt 0:07:39]} 21. Qxc5 {[%emt 0:13:38]} Nxa4 $2 {[%emt 0:01:47]} (21... Rac8 {is a better defense.} 22. b4 Rxc5 23. bxa5 Nd7) 22. Qc7 {[%emt 0:02:45]} Qxb5 {[%emt 0:00:28]} 23. Qxf7+ {[%emt 0:00:25]} Kh8 {[%emt 0:00:05] [#]} 24. Ne6 $2 {[%emt 0:02:34]} (24. Nxh7 $1 {[%mdl 512]} Qxb2 (24... Kxh7 25. Re4) 25. Rxa4) 24... Rg8 {[%emt 0:06:21]} 25. d6 {[%emt 0:01:34]} Rab8 {[%emt 0:06:56]} 26. Nc7 {[%emt 0:01:36]} (26. Nxg7 $18 Rxg7 27. Qf6) 26... Qb6 {[%emt 0:01:06]} 27. Rxa4 {[%emt 0:03:38]} Rgf8 {[%emt 0:03:15]} 28. Rxa6 {[%emt 0:00:24]} Rxf7 {[%emt 0:02:27]} 29. Rxb6 {[%emt 0:00:15]} Rxb6 {[%emt 0:00:48]} 30. Rd1 {[%emt 0:00:28]} Rd7 {[%emt 0:00:51]} 31. Ne8 {[%emt 0:00:28]} Rxb2 {[%emt 0:01:33]} 32. Bc6 {[%emt 0:00:16]} Rd8 {[%emt 0:00:27]} 33. d7 {[%emt 0:00:18]} Bf8 {[%emt 0:01:02]} 34. Nd6 {[%emt 0:02:11]} Bxd6 {[%emt 0:00:27]} 35. Rxd6 {[%emt 0:00:03]} Rb6 {[%emt 0:00:52]} 36. Re6 {[%emt 0:00:05]} Kg7 {[%emt 0:00:22]} 37. Re7+ {[%emt 0:00:59]} Kf6 {[%emt 0:00:23]} 38. Re8 {[%emt 0:00:14]} Rbb8 {[%emt 0:00:38]} 39. Kg2 {[%emt 0:00:19]} a5 {[%emt 0:00:28]} 40. Kf3 {[%emt 0:00:19]} Kf7 {[%emt 0:00:32]} 41. Rxe5 {[%emt 0:00:15]} Rb3+ {[%emt 0:00:29]} 42. Kg2 {[%emt 0:00:15]} Rb6 {[%emt 0:00:41]} 43. Ba4 {[%emt 0:00:33]} Ra6 {[%emt 0:00:27]} 44. Kh3 {[%emt 0:00:48]} Kf6 {[%emt 0:00:21]} 45. Re8 {[%emt 0:00:16]} Raa8 {[%emt 0:00:06]} 46. f4 {[%emt 0:00:19]} Kf7 {[%emt 0:00:15]} 47. Re5 {[%emt 0:00:26]} Ra7 {[%emt 0:00:44]} 48. Kg4 {[%emt 0:00:47]} Kf6 {[%emt 0:00:54]} 49. h4 {[%emt 0:00:47]} h5+ {[%emt 0:00:20]} 50. Kf3 {[%emt 0:00:23]} Rdxd7 {[%emt 0:00:50]} 51. Bxd7 {[%emt 0:00:14]} Rxd7 {[%emt 0:00:15]} 52. Rxa5 {[%emt 0:00:06]} Rd3+ {[%emt 0:00:04]} 53. Kf2 {[%emt 0:00:09]} Rb3 {[%emt 0:00:17]} 54. Rg5 {[%emt 0:00:29]} Rb2+ {[%emt 0:00:05]} 55. Ke3 {[%emt 0:00:52]} Rb3+ {[%emt 0:00:06]} 56. Kd4 {[%emt 0:00:26]} Rb4+ {[%emt 0:00:34]} 57. Kc3 {[%emt 0:00:33]} Ra4 {[%emt 0:00:11]} 58. Kb3 {[%emt 0:00:18]} Re4 {[%emt 0:00:13]} 59. Kc3 {[%emt 0:00:47]} Ra4 {[%emt 0:00:23]} 60. Kd3 {[%emt 0:00:04]} Ra3+ {[%emt 0:00:19]} 61. Ke4 {[%emt 0:00:07]} Ra4+ {[%emt 0:00:11]} 62. Kf3 {[%emt 0:00:16]} Ra3+ {[%emt 0:00:06]} 63. Kg2 {[%emt 0:00:03]} Ra2+ {[%emt 0:00:05]} 64. Kh3 {[%emt 0:00:03]} Ra3 {[%emt 0:00:07]} 65. Re5 {[%emt 0:00:41]} Rb3 {[%emt 0:00:24]} 66. Kg2 {[%emt 0:00:45]} Ra3 {[%emt 0:00:32]} 67. Kf2 {[%emt 0:00:06]} Ra2+ {[%emt 0:00:44]} 68. Kf3 {[%emt 0:01:50]} Ra3+ {[%emt 0:00:08]} 69. Kg2 {[%emt 0:02:34]} Ra2+ {[%emt 0:00:07]} 70. Kh3 {[%emt 0:00:06]} Ra3 {[%emt 0:00:08]} 71. Rb5 {[%emt 0:00:21]} Rc3 {[%emt 0:00:30]} 72. Rb6+ {[%emt 0:00:18]} Kf5 {[%emt 0:01:10]} 73. Rb8 {[%emt 0:00:22]} Ra3 {[%emt 0:00:47]} 74. Rf8+ {[%emt 0:00:22]} Ke6 {[%emt 0:00:13]} 75. Re8+ {[%emt 0:01:15]} Kf5 {[%emt 0:00:21]} 76. Re5+ {[%emt 0:00:30]} Kf6 {[%emt 0:00:05]} 77. Rg5 {[%emt 0:00:10]} Rb3 {[%emt 0:00:10]} 78. Kg2 {[%emt 0:00:04]} Rb2+ {[%emt 0:00:07]} 79. Kf3 {[%emt 0:00:03]} Rb3+ {[%emt 0:00:07]} 80. Ke4 {[%emt 0:00:25]} Rb4+ {[%emt 0:00:08]} 81. Kd3 {[%emt 0:01:45]} Rb3+ {[%emt 0:00:20]} 82. Kc4 {[%emt 0:00:06]} (82. Kc2 $5 {[%cal Rc2b3]} Rf3 83. Kd2 $16) 82... Ra3 {[%emt 0:00:08]} 83. Kb4 {[%emt 0:00:47]} Rf3 {[%emt 0:00:09]} 84. Kc5 {[%emt 0:00:26]} Rc3+ {[%emt 0:00:21]} 85. Kd6 {[%emt 0:00:29]} Rd3+ {[%emt 0:00:22]} 86. Kc6 {[%emt 0:00:08]} Rc3+ {[%emt 0:00:06]} 87. Kd7 {[%emt 0:00:04]} Rd3+ {[%emt 0:00:39]} 88. Ke8 {[%emt 0:00:13]} Ra3 {[%emt 0:00:24]} 89. Kd7 {[%emt 0:01:31]} Rd3+ {[%emt 0:00:24]} 90. Kc6 {[%emt 0:00:24]} Rd4 {[%emt 0:01:03]} 91. Kb5 {[%emt 0:01:02]} Re4 {[%emt 0:00:13]} 92. Kc5 {[%emt 0:00:15]} Ra4 {[%emt 0:00:08]} 93. Kd6 {[%emt 0:01:16]} Rd4+ {[%emt 0:00:10]} 94. Kc7 {[%emt 0:00:14]} Rc4+ {[%emt 0:00:05]} 95. Kd8 {[%emt 0:00:15]} Ra4 {[%emt 0:00:31]} 96. Kc7 {[%emt 0:01:01]} Rc4+ {[%emt 0:00:05]} 97. Kd6 {[%emt 0:00:16]} Rd4+ {[%emt 0:00:04]} 98. Kc5 {[%emt 0:00:08]} Ra4 {[%emt 0:00:11]} 99. Kd5 {[%emt 0:00:46]} Ra5+ {[%emt 0:00:25]} 100. Ke4 {[%emt 0:00:50]} Ra4+ {[%emt 0:00:07]} 101. Kf3 {[%emt 0:00:05]} Ra3+ {[%emt 0:00:05]} 102. Kg2 {[%emt 0:00:22]} Ra2+ {[%emt 0:00:06]} 103. Kh3 {[%emt 0:00:04]} Ra3 {[%emt 0:00:14]} 1/2-1/2

[Event "Satka Autumn 2017"]
[Site "Satka"]
[Date "2017.09.18"]
[Round "7"]
[White "Gutkovich, Polina"]
[Black "Matsenko, Elena"]
[Result "1-0"]
[ECO "E04"]
[WhiteElo "2012"]
[BlackElo "1927"]
[Annotator "NA RC"]
[PlyCount "69"]
[EventDate "2017.??.??"]
[EventType "swiss"]
[EventCountry "RUS"]
[SourceTitle "playchess.com"]
[Source "ChessBase"]
[SourceQuality "1"]
[TimeControl "5400+30"]

{[%evp 9,69,28,29,6,27,24,18,-10,-5,-27,20,21,29,31,22,24,72,79,75,83,93,93,122,106,137,96,56,0,8,0,350,363,373,187,210,81,105,48,211,272,281,252,244,145,130,129,325,318,339,340,568,679,606,797,820,720,1022,1007,1122,1280,29993,1977]} 1. d4 {[%emt 0:00:00]} Nf6 {[%emt 0:00:10]} 2. c4 {[%emt 0:00:00]} e6 {[%emt 0:00:06]} 3. g3 {[%emt 0:00:00]} d5 {[%emt 0:00:10]} 4. Bg2 {[%emt 0:00:00]} dxc4 {[%emt 0:00:19]} 5. Nf3 {[%emt 0:00:00]} Bd7 {[%emt 0:00:16]} 6. Ne5 {[%emt 0:00:59]} Bc6 {[%emt 0:00:10]} 7. Nxc6 {[%emt 0:02:10]} Nxc6 {[%emt 0:00:08]} 8. Qa4 {[%emt 0:01:58]} Qd7 {[%emt 0:00:24] E04: Open Catalan: 5 Nf3} 9. Qxc4 {[%emt 0:02:54]} Nd5 {[%emt 0:00:58]} 10. e3 {[%emt 0:04:55]} O-O-O {[%emt 0:00:24]} 11. Nc3 {[%emt 0:02:02] LiveBook: 4 Games} Kb8 $146 {[%emt 0:00:21]} ({Predecessor:} 11... h5 12. h4 f5 13. Bd2 Kb8 14. O-O-O Nb6 15. Qb5 Nb4 16. Qxd7 Rxd7 17. Bf1 Bd6 18. Kb1 Rhd8 19. Bc1 N4d5 20. Ne2 Nf6 21. Bg2 c6 22. Rhf1 {½-½ (22) Donchenko,A (2567)-Moiseenko,A (2710) Biel 2015}) 12. Bd2 {[%emt 0:02:03]} Ncb4 {[%emt 0:05:06]} 13. O-O {[%emt 0:01:43]} Nc6 {[%emt 0:00:47]} 14. a3 {[%emt 0:01:29]} h5 {[%emt 0:00:08]} 15. b4 {[%emt 0:02:29]} Nb6 {[%emt 0:02:05]} 16. Qb3 {[%emt 0:02:44]} h4 {[%emt 0:00:30]} 17. Rfb1 {[%emt 0:10:14]} f5 {[%emt 0:00:44]} 18. a4 {[%emt 0:02:02]} (18. Ne2 $16) 18... hxg3 {[%emt 0:05:44]} 19. hxg3 {[%emt 0:00:23]} Bd6 $2 {[%emt 0:05:49]} (19... Bxb4 $11 20. Ne4 Be7) 20. a5 {[%emt 0:04:37]} Nc8 {[%emt 0:00:10]} 21. d5 {[%emt 0:01:02]} (21. Na4 $142) 21... exd5 {[%emt 0:01:51]} (21... Be5 $16 {might work better.}) 22. b5 {[%emt 0:00:05]} ({Not} 22. Qxd5 Be5 $11) (22. Nxd5 $18 {and White stays clearly on top.} Ne5 23. b5) 22... N6e7 {[%emt 0:00:35]} 23. Nxd5 {[%emt 0:07:51]} ({Resist} 23. a6 b6 $11) (23. Ra2 $16) 23... Be5 $2 {[%emt 0:00:44]} (23... Bxg3 $1 $11 {and Black has nothing to worry.} 24. b6 cxb6 25. axb6 a6 26. Nxe7 Qxe7) 24. Nxe7 {[%emt 0:04:19]} Qxe7 {[%emt 0:00:21]} 25. Ra2 {[%emt 0:02:13]} g5 {[%emt 0:00:58]} 26. a6 {[%emt 0:14:17]} b6 {[%emt 0:00:24]} 27. Bb4 {[%emt 0:01:59]} Qf6 $2 {[%emt 0:02:03]} (27... Qe8 $16) 28. f4 {[%emt 0:02:33]} gxf4 {[%emt 0:03:05]} 29. gxf4 {[%emt 0:00:08]} Qh4 {[%emt 0:02:12]} (29... Rh6 {is a better defense.} 30. fxe5 Qxe5) 30. fxe5 {[%emt 0:00:25]} Qh2+ {[%emt 0:00:13]} 31. Kf1 {[%emt 0:00:07]} f4 {[%emt 0:05:04]} 32. Rf2 {[%emt 0:01:23]} Qh7 {[%emt 0:04:21]} 33. exf4 {[%emt 0:02:46]} Rd3 {[%emt 0:00:17]} 34. Qc2 {[%emt 0:00:29]} Rhd8 {[%emt 0:00:56]} 35. Re1 $18 {[%emt 0:01:02]} (35. Qc6 $142 Rd1+ 36. Be1 Rxe1+ 37. Rxe1 Qd3+ 38. Rfe2 Qxe2+ 39. Kxe2 Rd2+ 40. Kxd2 Ne7 41. Qb7#) 1-0

[Event "Satka Autumn 2017"]
[Site "Satka"]
[Date "2017.09.18"]
[Round "7"]
[White "Surovtseva, Alisa"]
[Black "Nasybullina, Alfia"]
[Result "0-1"]
[ECO "B30"]
[WhiteElo "1623"]
[BlackElo "2045"]
[Annotator "NA RC"]
[PlyCount "96"]
[EventDate "2017.??.??"]
[EventType "swiss"]
[EventCountry "RUS"]
[SourceTitle "playchess.com"]
[Source "ChessBase"]
[SourceQuality "1"]
[TimeControl "5400+30"]

{[%evp 14,95,7,14,4,2,-9,0,-17,0,0,2,0,-16,0,-12,18,0,0,0,7,-61,-56,-62,-70,-73,-46,-70,-57,-100,-81,-179,-187,-207,-235,-260,-253,-406,-408,-458,-261,-254,-236,-266,-311,-266,-379,-313,32767,32767,32767,32767,-374,-336,32767,32767,32767,32767,32767,32767,32767,32767,32767,32767,32767,32767,32767,32767,32767,32767,32767,32767,32767,32767,32767,32767,32767,32767,32767,32767,32767,32767,-29985,-29985]} 1. e4 {[%emt 0:00:00]} c5 {[%emt 0:00:04]} 2. Nf3 {[%emt 0:00:00]} Nc6 {[%emt 0:00:06]} 3. Bb5 {[%emt 0:00:00]} d6 {[%emt 0:00:06]} 4. d4 {[%emt 0:00:00]} cxd4 {[%emt 0:00:04]} 5. Qxd4 {[%emt 0:00:00]} Bd7 {[%emt 0:00:05]} 6. Bxc6 {[%emt 0:00:00]} Bxc6 {[%emt 0:00:05]} 7. Nc3 {[%emt 0:00:00]} Nf6 {[%emt 0:00:17]} 8. Bg5 {[%emt 0:00:06]} e6 {[%emt 0:00:07]} 9. O-O-O {[%emt 0:00:44]} Be7 {[%emt 0:00:17]} 10. Qd3 {[%emt 0:00:26]} Qa5 {[%emt 0:00:52]} 11. h4 {[%emt 0:00:57]} h6 {[%emt 0:00:32]} 12. Bxf6 {[%emt 0:00:35] B53: Sicilian: 2...d6: Lines with Qxd4} Bxf6 {[%emt 0:00:08]} 13. Nd4 $1 {[%emt 0:00:24]} O-O {[%emt 0:01:35]} (13... Rd8 14. Qe3 Qb6 15. Rh3 Bxd4 16. Rxd4 e5 17. Rd1 Qxe3+ 18. Rxe3 h5 19. Rg3 g6 {½-½ (43) Ganguly,S (2654)-Gao,R (2556) Tashkent 2016}) 14. f4 {[%emt 0:09:08] LiveBook: 5 Games} Rfd8 {[%emt 0:02:56]} 15. g4 {[%emt 0:04:50]} Bxd4 {[%emt 0:00:16]} 16. Qxd4 {[%emt 0:00:11]} b5 {[%emt 0:12:30]} 17. Kb1 $146 {[%emt 0:03:37]} ({Find the theoretical novelty and annotate with similar games:} 17. g5 $11 hxg5 (17... h5 18. g6 f6 19. Kb1 b4 {1-0 (41) Egorova,A (1992)-Bykovtsev,A (2059) Durban 2014}) 18. hxg5) 17... b4 $1 {[%emt 0:00:29]} 18. Ne2 {[%emt 0:00:17]} e5 $1 {[%emt 0:01:13]} 19. Qe3 {[%emt 0:06:50]} Qc5 {[%emt 0:05:08]} 20. Rh3 {[%emt 0:22:50]} Rac8 {[%emt 0:06:31]} 21. fxe5 {[%emt 0:12:30]} ({Better is} 21. g5 $15) 21... Qxe5 {[%emt 0:05:18]} 22. Nd4 {[%emt 0:11:49]} (22. Rd4 $17 {was called for.}) 22... Bxe4 {[%emt 0:03:09]} 23. g5 {[%emt 0:03:27]} h5 {[%emt 0:00:49]} 24. Re1 {[%emt 0:01:53]} Re8 {[%emt 0:00:21]} 25. Re2 {[%emt 0:08:32]} Rc4 {[%emt 0:03:17]} 26. Rd2 {[%emt 0:02:34] [#]} Bg2 $1 {[%emt 0:04:41]} 27. Qxe5 {[%emt 0:00:38]} Rxe5 {[%emt 0:00:16]} 28. Rhd3 {[%emt 0:00:11]} Bf1 {[%emt 0:00:50]} 29. Nf3 {[%emt 0:01:44]} Bxd3 {[%emt 0:01:01]} 30. cxd3 {[%emt 0:00:19]} Rf4 {[%emt 0:00:49]} 31. Nxe5 {[%emt 0:00:06]} dxe5 {[%emt 0:00:03]} 32. Rh2 {[%emt 0:00:06]} Kh7 {[%emt 0:01:04]} 33. Kc2 {[%emt 0:00:46]} Kg6 {[%emt 0:00:08]} 34. Kd2 {[%emt 0:00:29]} Kf5 {[%emt 0:00:12]} 35. Ke3 {[%emt 0:00:29]} Kg4 {[%emt 0:00:16]} 36. g6 {[%emt 0:00:47]} fxg6 {[%emt 0:00:36]} 37. Rg2+ {[%emt 0:00:04]} Kf5 {[%emt 0:00:06]} 38. Rh2 {[%emt 0:01:14]} g5 {[%emt 0:00:18]} 39. hxg5 {[%emt 0:00:08]} Kxg5 {[%emt 0:00:05]} 40. Rg2+ {[%emt 0:00:07]} Kf6 {[%emt 0:00:25]} 41. Rh2 {[%emt 0:00:10]} h4 {[%emt 0:00:15]} 42. a3 {[%emt 0:00:24]} bxa3 {[%emt 0:00:16]} 43. bxa3 {[%emt 0:00:03]} g5 {[%emt 0:00:16]} 44. Rb2 {[%emt 0:00:06]} h3 {[%emt 0:01:03]} 45. Rb8 {[%emt 0:00:12]} h2 {[%emt 0:00:40]} 46. Rh8 {[%emt 0:00:14]} Rh4 {[%emt 0:00:05]} 47. Rf8+ {[%emt 0:00:04]} Ke7 {[%emt 0:00:22]} 48. Rf1 {[%emt 0:00:05]} h1=Q {[%emt 0:00:06]} 0-1

[Event "Satka Autumn 2017"]
[Site "Satka"]
[Date "2017.09.19"]
[Round "8"]
[White "Nosacheva, Mariya"]
[Black "Gutkovich, Polina"]
[Result "1-0"]
[ECO "B33"]
[WhiteElo "2077"]
[BlackElo "2012"]
[Annotator "NA RC"]
[PlyCount "93"]
[EventDate "2017.??.??"]
[EventType "swiss"]
[EventCountry "RUS"]
[SourceTitle "playchess.com"]
[Source "ChessBase"]
[SourceQuality "1"]
[TimeControl "5400+30"]

{[%evp 27,80,46,52,5,12,10,4,0,8,-6,0,-9,0,0,0,-16,-6,-18,0,-21,0,-41,-28,-105,-58,-29,-32,-18,-26,-100,-102,-470,-485,-413,-99,-527,-494,-633,-626,-605,-641,-589,-763,-605,-183,-847,32767,32767,32767,32767,32767,32767,32767,32767,357]} 1. e4 {[%emt 0:00:00]} c5 {[%emt 0:00:06]} 2. Nf3 {[%emt 0:00:00]} Nc6 {[%emt 0:00:04]} 3. d4 {[%emt 0:00:00]} cxd4 {[%emt 0:00:04]} 4. Nxd4 {[%emt 0:00:00]} Nf6 {[%emt 0:00:02]} 5. Nc3 {[%emt 0:00:08]} e5 {[%emt 0:00:04]} 6. Ndb5 {[%emt 0:00:11]} d6 {[%emt 0:00:05]} 7. Bg5 {[%emt 0:00:06]} a6 {[%emt 0:00:03]} 8. Na3 {[%emt 0:00:18]} b5 {[%emt 0:00:03]} 9. Nd5 {[%emt 0:00:23]} Be7 {[%emt 0:00:06]} 10. Bxf6 {[%emt 0:00:07]} Bxf6 {[%emt 0:00:02]} 11. c3 {[%emt 0:00:36]} O-O {[%emt 0:00:10]} 12. Nc2 {[%emt 0:00:14]} Rb8 {[%emt 0:00:08]} 13. h4 {[%emt 0:00:15]} Be7 {[%emt 0:00:22]} 14. g3 {[%emt 0:03:57] B33: Sicilian: Pelikan and Sveshnikov Variations} a5 {[%emt 0:01:47]} 15. Bg2 {[%emt 0:04:04]} Be6 {[%emt 0:00:45]} 16. Nce3 {[%emt 0:00:59]} Qd7 {[%emt 0:01:53]} 17. O-O {[%emt 0:00:38]} Bd8 {[%emt 0:01:02]} 18. Qd3 {[%emt 0:07:41]} Ne7 {[%emt 0:11:59] [#]} 19. Rfd1 $146 {[%emt 0:06:23]} ({Find the theoretical novelty and annotate with similar games:} 19. Nxe7+ Bxe7 20. a3 Rfc8 21. Rfd1 g6 {½-½ (40) Shirov,A (2714)-Timofeev,A (2622) Sarajevo 2005}) 19... Nxd5 {[%emt 0:01:55]} 20. Nxd5 {[%emt 0:04:24]} Bb6 {[%emt 0:02:24]} 21. Rd2 {[%emt 0:04:40]} Bc5 {[%emt 0:07:24]} 22. a3 {[%emt 0:02:47]} a4 {[%emt 0:00:12]} 23. Re1 {[%emt 0:04:17]} Qa7 {[%emt 0:01:51]} 24. Ne3 {[%emt 0:06:40]} Kh8 {[%emt 0:04:28]} 25. h5 {[%emt 0:10:21] [#]} (25. Kh2 $11) 25... Qe7 {[%emt 0:03:34]} (25... g6 $1 $17) 26. Bf3 $1 {[%emt 0:14:52]} Qg5 {[%emt 0:02:17]} 27. Kg2 $1 {[%emt 0:00:32]} h6 {[%emt 0:15:18]} 28. Nd5 {[%emt 0:09:52]} (28. Rde2 $11) 28... f5 {[%emt 0:03:08]} 29. Nc7 $2 {[%emt 0:01:22]} (29. exf5 $17 {is a better chance.} Bxf5 30. Be4) 29... Bc4 {[%emt 0:08:43]} 30. Qc2 {[%emt 0:00:06]} Rbd8 $2 {[%emt 0:01:02]} (30... Rb7 $19 {is more deadly.} 31. Na6 Bb6 32. Rxd6 fxe4 33. Qxe4 Rbf7) 31. Rh1 $2 {[%emt 0:07:45]} (31. Nd5 $17 {is tougher.}) 31... Rf7 {[%emt 0:01:01]} 32. Na6 {[%emt 0:00:29]} Ba7 {[%emt 0:00:44]} 33. exf5 {[%emt 0:06:58]} Rxf5 {[%emt 0:01:28]} 34. Be4 {[%emt 0:00:43]} Rf4 {[%emt 0:00:40]} 35. f3 {[%emt 0:01:01]} Rdf8 $2 {[%emt 0:04:16]} (35... d5 36. Rhd1 Bb3) 36. Nb4 $2 {[%emt 0:00:09]} (36. Rxd6 $17 R4f6 37. Qd1 (37. Rxf6 gxf6 38. Bg6 f5 $19)) 36... Bf7 {[%emt 0:11:15]} 37. Rxd6 {[%emt 0:01:47]} Bxh5 {[%emt 0:00:51]} 38. Rxh5 {[%emt 0:00:02]} Qxh5 {[%emt 0:00:31]} 39. gxf4 {[%emt 0:00:23]} exf4 {[%emt 0:00:33]} 40. Rg6 {[%emt 0:00:27]} Rf6 $18 {[%emt 0:02:20]} 41. Qd3 {[%emt 0:02:29]} Qc5 {[%emt 0:01:53]} 42. Qd8+ {[%emt 0:01:04]} Rf8 {[%emt 0:00:04]} 43. Qd4 {[%emt 0:00:04]} Qe7 {[%emt 0:00:13]} 44. Rxh6+ {[%emt 0:00:19]} Kg8 {[%emt 0:00:14]} 45. Bh7+ {[%emt 0:00:58]} Kh8 {[%emt 0:00:17]} 46. Bg6+ {[%emt 0:00:07]} Kg8 {[%emt 0:00:04]} 47. Qd5+ {[%emt 0:00:03]} 1-0

[Event "Satka Autumn 2017"]
[Site "Satka"]
[Date "2017.09.19"]
[Round "8"]
[White "Simakova, Elena"]
[Black "Vinokur, Yuliya"]
[Result "1-0"]
[ECO "B34"]
[WhiteElo "1951"]
[BlackElo "2086"]
[Annotator "NA RC"]
[PlyCount "99"]
[EventDate "2017.??.??"]
[EventType "swiss"]
[EventCountry "RUS"]
[SourceTitle "playchess.com"]
[Source "ChessBase"]
[SourceQuality "1"]
[TimeControl "5400+30"]

{[%evp 18,61,19,0,1,3,16,8,12,0,0,-24,1,0,25,16,30,0,48,59,82,96,91,91,107,107,87,85,109,112,147,132,129,157,148,200,166,143,113,129,115,153,146,171,212,174]} 1. e4 {[%emt 0:00:00]} c5 {[%emt 0:00:15]} 2. Nf3 {[%emt 0:00:00]} Nc6 {[%emt 0:00:05]} 3. d4 {[%emt 0:00:00]} cxd4 {[%emt 0:01:48]} 4. Nxd4 {[%emt 0:00:00]} Nf6 {[%emt 0:02:49]} 5. Nc3 {[%emt 0:00:05]} e5 {[%emt 0:00:05]} 6. Ndb5 {[%emt 0:00:47]} d6 {[%emt 0:00:48]} 7. Nd5 {[%emt 0:00:41]} Nxd5 {[%emt 0:00:09]} 8. exd5 {[%emt 0:00:06]} Nb8 {[%emt 0:00:11]} 9. c4 {[%emt 0:00:15]} Be7 {[%emt 0:06:17]} 10. Be2 {[%emt 0:01:45]} O-O {[%emt 0:01:46]} 11. O-O {[%emt 0:00:14]} a6 {[%emt 0:04:41]} 12. Nc3 {[%emt 0:00:08]} Nd7 {[%emt 0:00:05]} 13. Qc2 {[%emt 0:06:00] B33: Sicilian: Pelikan and Sveshnikov Variations} (13. Rb1 f5 14. b4 e4 15. c5 Ne5 16. Bb2 Bd7 17. a4 Bf6 18. Rc1 Kh8 19. Ba3 Ng6 20. f4 exf3 21. Bxf3 Ne5 {½-½ (46) Polgar,J (2708)-Karjakin,S (2694) Bilbao 2007}) 13... f5 {[%emt 0:03:29]} 14. f4 {[%emt 0:04:44] LiveBook: 11 Games} Qe8 {[%emt 0:11:50]} 15. Kh1 $146 {[%emt 0:09:48]} ({Find the theoretical novelty and annotate with similar games:} 15. Be3 Bf6 16. Rae1 exf4 17. Bxf4 Be5 18. Bd3 g6 19. b4 b6 20. Kh1 Qd8 21. Ne2 Qc7 {1-0 (51) Kickert,G (1920)-Hannes,D (1922) Willingen 2005}) 15... Kh8 {[%emt 0:04:05]} 16. Bd2 {[%emt 0:02:11]} e4 {[%emt 0:05:05]} 17. g4 {[%emt 0:09:18]} Nc5 {[%emt 0:11:18]} 18. g5 {[%emt 0:09:28]} Qf7 {[%emt 0:08:43]} 19. b4 {[%emt 0:03:01]} Nd7 {[%emt 0:01:22]} 20. Be3 {[%emt 0:02:16]} b6 {[%emt 0:03:19]} 21. Qa4 {[%emt 0:15:52]} Rb8 {[%emt 0:07:03]} 22. Bd4 {[%emt 0:10:02]} Bd8 {[%emt 0:07:30]} 23. Rg1 {[%emt 0:03:43]} b5 {[%emt 0:07:14]} 24. cxb5 {[%emt 0:01:53]} axb5 {[%emt 0:00:23]} 25. Bxb5 {[%emt 0:02:52]} Nb6 {[%emt 0:01:01] [#]} 26. Qb3 $1 {[%emt 0:01:34]} Bb7 {[%emt 0:01:18]} 27. Rgd1 {[%emt 0:01:30]} Qh5 {[%emt 0:05:36]} 28. Be2 {[%emt 0:00:52]} Qh4 {[%emt 0:00:26]} 29. Rf1 {[%emt 0:03:56]} h6 {[%emt 0:01:55]} 30. gxh6 {[%emt 0:01:57]} Qxh6 {[%emt 0:00:14]} 31. a4 $18 {[%emt 0:04:35]} Bf6 {[%emt 0:03:25]} 32. Bxb6 {[%emt 0:00:57]} Rbc8 {[%emt 0:00:58]} 33. Rac1 {[%emt 0:01:27]} Qh3 {[%emt 0:00:42]} 34. Bc4 {[%emt 0:00:11]} g5 {[%emt 0:00:14]} 35. Ne2 {[%emt 0:01:38]} Qh6 {[%emt 0:00:21]} 36. Bd4 {[%emt 0:00:43]} Bxd4 {[%emt 0:00:43]} 37. Nxd4 {[%emt 0:00:04]} gxf4 {[%emt 0:00:03]} 38. Ne6 {[%emt 0:00:52]} Rg8 {[%emt 0:01:09]} 39. Qb2+ {[%emt 0:00:32]} Kh7 {[%emt 0:00:08]} 40. Rxf4 {[%emt 0:00:26]} Qh5 {[%emt 0:01:23]} 41. Qd4 {[%emt 0:02:31]} Rg6 {[%emt 0:00:29]} 42. Rcf1 {[%emt 0:00:35]} Rcg8 {[%emt 0:00:21]} 43. Rxf5 {[%emt 0:00:31]} Qh3 {[%emt 0:00:13]} 44. Rf7+ {[%emt 0:00:50]} Kh6 {[%emt 0:00:01]} 45. Nf4 {[%emt 0:00:11]} Rg1+ {[%emt 0:01:26]} 46. Rxg1 {[%emt 0:00:33]} Qf3+ {[%emt 0:00:00]} 47. Rg2 {[%emt 0:00:11]} Rxg2 {[%emt 0:00:16]} 48. Qh8+ {[%emt 0:00:27]} Kg5 {[%emt 0:00:04]} 49. Qg7+ {[%emt 0:00:31]} Kh4 {[%emt 0:00:42]} 50. Qh6+ {[%emt 0:00:26]} 1-0